[Event "Titled Tuesday Blitz May 9 Early 2023"]
[White "Bilych, Olexiy"]
[Black "Mouhamad, Joachim"]
[WhiteFideId "14156504"]
[BlackFideId "656410"]
[WhiteElo "2320"]
[BlackElo "2125"]
[Result "1-0"]
[Round "01"]
[TimeControl "180+2"]
[Date "2023.05.09"]
[WhiteClock "0:00:48"]
[BlackClock "0:00:00"]

1. d4 {[%clk 0:03:00]}  d5 {[%clk 0:02:59]} 2. c4 {[%clk 0:03:00]}  e6 {[%clk 0:02:59]} 3. Nf3 {[%clk 0:03:00]}  a6 {[%clk 0:02:59]} 4. Nc3 {[%clk 0:02:59]}  dxc4 {[%clk 0:02:59]} 5. a4 {[%clk 0:02:59]}  Nc6 {[%clk 0:02:58]} 6. e4 {[%clk 0:02:53]}  Na5 {[%clk 0:02:58]} 7. Be3 {[%clk 0:02:49]}  Nf6 {[%clk 0:02:46]} 8. Ne5 {[%clk 0:02:47]}  Be7 {[%clk 0:02:43]} 9. Nxc4 {[%clk 0:02:45]}  Nxc4 {[%clk 0:02:44]} 10. Bxc4 {[%clk 0:02:45]}  O-O {[%clk 0:02:42]} 11. O-O {[%clk 0:02:45]}  b6 {[%clk 0:02:24]} 12. Qc2 {[%clk 0:02:36]}  Bb7 {[%clk 0:02:22]} 13. Rad1 {[%clk 0:02:37]}  Ng4 {[%clk 0:02:13]} 14. Bf4 {[%clk 0:02:36]}  Bg5 {[%clk 0:01:59]} 15. Bg3 {[%clk 0:02:33]}  Bh4 {[%clk 0:01:59]} 16. Qe2 {[%clk 0:02:22]}  Bxg3 {[%clk 0:01:56]} 17. hxg3 {[%clk 0:02:23]}  Nf6 {[%clk 0:01:51]} 18. g4 {[%clk 0:02:22]}  Qe7 {[%clk 0:01:40]} 19. g5 {[%clk 0:02:10]}  Nd7 {[%clk 0:01:39]} 20. f4 {[%clk 0:02:10]}  c5 {[%clk 0:01:35]} 21. d5 {[%clk 0:02:08]}  exd5 {[%clk 0:01:34]} 22. Nxd5 {[%clk 0:02:08]}  Bxd5 {[%clk 0:01:32]} 23. Rxd5 {[%clk 0:02:06]}  Rfe8 {[%clk 0:01:13]} 24. e5 {[%clk 0:02:05]}  Nf8 {[%clk 0:01:05]} 25. Rd6 {[%clk 0:01:55]}  Qxd6 {[%clk 0:00:55]} 26. exd6 {[%clk 0:01:55]}  Rxe2 {[%clk 0:00:56]} 27. Bxe2 {[%clk 0:01:56]}  Rd8 {[%clk 0:00:54]} 28. Rd1 {[%clk 0:01:55]}  Ne6 {[%clk 0:00:50]} 29. Bxa6 {[%clk 0:01:53]}  Nd4 {[%clk 0:00:48]} 30. b4 {[%clk 0:01:38]}  Rxd6 {[%clk 0:00:46]} 31. bxc5 {[%clk 0:01:33]}  bxc5 {[%clk 0:00:34]} 32. Rb1 {[%clk 0:01:14]}  g6 {[%clk 0:00:33]} 33. Bc4 {[%clk 0:01:11]}  Rd7 {[%clk 0:00:23]} 34. a5 {[%clk 0:01:09]}  Ra7 {[%clk 0:00:23]} 35. a6 {[%clk 0:01:09]}  Kf8 {[%clk 0:00:17]} 36. Rb6 {[%clk 0:01:02]}  Ke7 {[%clk 0:00:15]} 37. Kf2 {[%clk 0:01:00]}  Kd7 {[%clk 0:00:12]} 38. Rf6 {[%clk 0:00:54]}  Kd8 {[%clk 0:00:01]} 39. Bxf7 {[%clk 0:00:49]}  Nf5 {[%clk 0:00:02]} 40. Bc4 {[%clk 0:00:48]}  Ne7 {[%clk 0:00:02]} 41. Rf7 {[%clk 0:00:47]}  Kd7 {[%clk 0:00:01]} 42. Rxh7 {[%clk 0:00:47]}  Kd6 {[%clk 0:00:01]} 43. f5 {[%clk 0:00:46]}  Nc6 {[%clk 0:00:02]} 44. Rxa7 {[%clk 0:00:46]}  Nxa7 {[%clk 0:00:02]} 45. fxg6 {[%clk 0:00:47]}  Ke7 {[%clk 0:00:00]} 46. g7 {[%clk 0:00:48]} 1-0


[Site "https://www.chess.com"]

[Event "Titled Tuesday Blitz May 9 Early 2023"]
[White "Papasimakopoulos, Alexandros"]
[Black "Sargissyan, Sargis"]
[WhiteFideId "4244125"]
[BlackFideId "13303210"]
[WhiteElo "2359"]
[BlackElo "2109"]
[Result "1-0"]
[Round "01"]
[TimeControl "180+2"]
[Date "2023.05.09"]
[WhiteClock "0:00:25"]
[BlackClock "0:00:21"]

1. d4 {[%clk 0:02:51]}  Nf6 {[%clk 0:02:58]} 2. c4 {[%clk 0:02:45]}  g6 {[%clk 0:02:59]} 3. Nc3 {[%clk 0:02:45]}  Bg7 {[%clk 0:02:59]} 4. Bg5 {[%clk 0:02:44]}  O-O {[%clk 0:02:57]} 5. e3 {[%clk 0:02:42]}  d6 {[%clk 0:02:48]} 6. Nf3 {[%clk 0:02:42]}  Nbd7 {[%clk 0:02:48]} 7. Be2 {[%clk 0:02:38]}  e5 {[%clk 0:02:28]} 8. dxe5 {[%clk 0:02:31]}  dxe5 {[%clk 0:02:28]} 9. Nd2 {[%clk 0:02:31]}  h6 {[%clk 0:02:26]} 10. Bh4 {[%clk 0:02:30]}  c6 {[%clk 0:02:09]} 11. O-O {[%clk 0:02:23]}  Nc5 {[%clk 0:02:06]} 12. Qc2 {[%clk 0:02:09]}  Bf5 {[%clk 0:01:59]} 13. e4 {[%clk 0:02:08]}  Bd7 {[%clk 0:01:54]} 14. Bg3 {[%clk 0:02:07]}  Qe7 {[%clk 0:01:33]} 15. b4 {[%clk 0:02:07]}  Ne6 {[%clk 0:01:33]} 16. Bxe5 {[%clk 0:02:06]}  Qxb4 {[%clk 0:01:34]} 17. Rab1 {[%clk 0:02:04]}  Qc5 {[%clk 0:01:34]} 18. Bxf6 {[%clk 0:01:47]}  Bxf6 {[%clk 0:01:33]} 19. Rxb7 {[%clk 0:01:48]}  Nd4 {[%clk 0:01:21]} 20. Nb3 {[%clk 0:01:48]}  Nxb3 {[%clk 0:01:13]} 21. Rxb3 {[%clk 0:01:30]}  Be6 {[%clk 0:01:10]} 22. Na4 {[%clk 0:01:19]}  Qa5 {[%clk 0:01:08]} 23. Re3 {[%clk 0:01:11]}  Rfd8 {[%clk 0:01:06]} 24. c5 {[%clk 0:01:05]}  Rd2 {[%clk 0:00:57]} 25. Qc1 {[%clk 0:00:57]}  Rxe2 {[%clk 0:00:54]} 26. Rxe2 {[%clk 0:00:55]}  Qxa4 {[%clk 0:00:54]} 27. Rd1 {[%clk 0:00:45]}  Kg7 {[%clk 0:00:49]} 28. e5 {[%clk 0:00:39]}  Bg5 {[%clk 0:00:43]} 29. Qc2 {[%clk 0:00:39]}  Bg4 {[%clk 0:00:41]} 30. Qxa4 {[%clk 0:00:38]}  Bxe2 {[%clk 0:00:40]} 31. Re1 {[%clk 0:00:38]}  Bb5 {[%clk 0:00:36]} 32. Qd4 {[%clk 0:00:37]}  Rd8 {[%clk 0:00:35]} 33. Qe4 {[%clk 0:00:30]}  Rd2 {[%clk 0:00:30]} 34. a4 {[%clk 0:00:26]}  Bd3 {[%clk 0:00:24]} 35. Qxc6 {[%clk 0:00:25]}  Rc2 {[%clk 0:00:21]} 36. e6 {[%clk 0:00:25]} 1-0


[Site "https://www.chess.com"]

[Event "Titled Tuesday Blitz May 9 Early 2023"]
[White "Rozman, Levy"]
[Black "Balla, Tamas-Kristof"]
[WhiteFideId "2039877"]
[BlackFideId "1208497"]
[WhiteElo "2376"]
[BlackElo "2334"]
[Result "1-0"]
[Round "01"]
[TimeControl "180+2"]
[Date "2023.05.09"]
[WhiteClock "0:00:03"]
[BlackClock "0:00:06"]

1. e4 {[%clk 0:02:52]}  c5 {[%clk 0:02:57]} 2. Nc3 {[%clk 0:02:48]}  Nc6 {[%clk 0:02:55]} 3. Bb5 {[%clk 0:02:48]}  Nd4 {[%clk 0:02:53]} 4. Nf3 {[%clk 0:02:48]}  Nf6 {[%clk 0:02:51]} 5. e5 {[%clk 0:02:43]}  Nxb5 {[%clk 0:02:49]} 6. Nxb5 {[%clk 0:02:42]}  Nd5 {[%clk 0:02:49]} 7. O-O {[%clk 0:02:41]}  Nc7 {[%clk 0:02:37]} 8. Nc3 {[%clk 0:02:34]}  Ne6 {[%clk 0:02:36]} 9. d4 {[%clk 0:02:32]}  cxd4 {[%clk 0:02:36]} 10. Nxd4 {[%clk 0:02:32]}  d6 {[%clk 0:02:22]} 11. exd6 {[%clk 0:02:11]}  exd6 {[%clk 0:02:18]} 12. Re1 {[%clk 0:02:08]}  Be7 {[%clk 0:02:18]} 13. Nf5 {[%clk 0:02:06]}  O-O {[%clk 0:02:12]} 14. Nd5 {[%clk 0:02:00]}  Bg5 {[%clk 0:01:47]} 15. Nxd6 {[%clk 0:01:38]}  Bxc1 {[%clk 0:01:38]} 16. Rxc1 {[%clk 0:01:36]}  Bd7 {[%clk 0:01:30]} 17. Nxb7 {[%clk 0:01:30]}  Qg5 {[%clk 0:01:20]} 18. f4 {[%clk 0:01:26]}  Nxf4 {[%clk 0:00:54]} 19. Nxf4 {[%clk 0:01:23]}  Bc6 {[%clk 0:00:39]} 20. Na5 {[%clk 0:00:51]}  Qxa5 {[%clk 0:00:37]} 21. Qd4 {[%clk 0:00:40]}  Rae8 {[%clk 0:00:33]} 22. Rf1 {[%clk 0:00:31]}  Re4 {[%clk 0:00:33]} 23. Qd6 {[%clk 0:00:26]}  Qb6+ {[%clk 0:00:28]} 24. Kh1 {[%clk 0:00:26]}  Rxf4 {[%clk 0:00:27]} 25. Qxf4 {[%clk 0:00:26]}  Qxb2 {[%clk 0:00:23]} 26. a4 {[%clk 0:00:19]}  Qa3 {[%clk 0:00:18]} 27. Rce1 {[%clk 0:00:16]}  Bxa4 {[%clk 0:00:17]} 28. Re3 {[%clk 0:00:14]}  Qa2 {[%clk 0:00:14]} 29. c4 {[%clk 0:00:09]}  Bd7 {[%clk 0:00:13]} 30. Re7 {[%clk 0:00:04]}  Be6 {[%clk 0:00:05]} 31. Rxe6 {[%clk 0:00:03]}  Qa4 {[%clk 0:00:06]} 32. Re4 {[%clk 0:00:03]}  h6 {[%clk 0:00:06]} 33. h3 {[%clk 0:00:03]}  Qb4 {[%clk 0:00:06]} 34. Qf3 {[%clk 0:00:02]}  a5 {[%clk 0:00:07]} 35. Rfe1 {[%clk 0:00:03]}  a4 {[%clk 0:00:07]} 36. c5 {[%clk 0:00:03]}  a3 {[%clk 0:00:06]} 37. Rxb4 {[%clk 0:00:03]} 1-0


[Site "https://www.chess.com"]

[Event "Titled Tuesday Blitz May 9 Early 2023"]
[White "Karthik Rajaa"]
[Black "Szyszylo, Rafal"]
[WhiteFideId "25035215"]
[BlackFideId "1109626"]
[WhiteElo "2215"]
[BlackElo "1951"]
[Result "1-0"]
[Round "01"]
[TimeControl "180+2"]
[Date "2023.05.09"]
[WhiteClock "0:00:49"]
[BlackClock "0:00:02"]

1. Nf3 {[%clk 0:03:00]}  d6 {[%clk 0:02:59]} 2. d4 {[%clk 0:03:00]}  g6 {[%clk 0:02:57]} 3. Nc3 {[%clk 0:03:00]}  Nf6 {[%clk 0:02:57]} 4. e4 {[%clk 0:03:00]}  Bg7 {[%clk 0:02:57]} 5. Be2 {[%clk 0:03:01]}  O-O {[%clk 0:02:57]} 6. O-O {[%clk 0:03:01]}  Bg4 {[%clk 0:02:57]} 7. Be3 {[%clk 0:03:00]}  Nc6 {[%clk 0:02:56]} 8. d5 {[%clk 0:02:59]}  Bxf3 {[%clk 0:02:55]} 9. Bxf3 {[%clk 0:02:59]}  Ne5 {[%clk 0:02:56]} 10. Be2 {[%clk 0:02:58]}  c6 {[%clk 0:02:56]} 11. h3 {[%clk 0:02:51]}  cxd5 {[%clk 0:02:52]} 12. exd5 {[%clk 0:02:49]}  Qc7 {[%clk 0:02:42]} 13. Bd4 {[%clk 0:02:48]}  a6 {[%clk 0:02:40]} 14. a4 {[%clk 0:02:46]}  b6 {[%clk 0:02:39]} 15. Re1 {[%clk 0:02:44]}  Rfe8 {[%clk 0:02:20]} 16. Bf1 {[%clk 0:02:42]}  Qb7 {[%clk 0:02:13]} 17. g3 {[%clk 0:01:51]}  Rec8 {[%clk 0:02:02]} 18. Bg2 {[%clk 0:01:50]}  Rab8 {[%clk 0:01:59]} 19. f4 {[%clk 0:01:38]}  Ned7 {[%clk 0:01:59]} 20. Rxe7 {[%clk 0:01:37]}  b5 {[%clk 0:01:52]} 21. axb5 {[%clk 0:01:34]}  axb5 {[%clk 0:01:52]} 22. Ra7 {[%clk 0:01:34]}  b4 {[%clk 0:00:34]} 23. Rxb7 {[%clk 0:01:32]}  Rxb7 {[%clk 0:00:35]} 24. Ne4 {[%clk 0:01:20]}  Nxe4 {[%clk 0:00:34]} 25. Rxe4 {[%clk 0:01:08]}  Nf6 {[%clk 0:00:32]} 26. Re2 {[%clk 0:01:05]}  Rc4 {[%clk 0:00:30]} 27. b3 {[%clk 0:01:00]}  Rxd4 {[%clk 0:00:22]} 28. Qxd4 {[%clk 0:01:00]}  Nh5 {[%clk 0:00:23]} 29. Re8+ {[%clk 0:00:59]}  Bf8 {[%clk 0:00:23]} 30. g4 {[%clk 0:00:55]}  Ng7 {[%clk 0:00:19]} 31. Rc8 {[%clk 0:00:55]}  h5 {[%clk 0:00:17]} 32. Qf6 {[%clk 0:00:51]}  Rd7 {[%clk 0:00:15]} 33. Bf1 {[%clk 0:00:49]}  hxg4 {[%clk 0:00:15]} 34. hxg4 {[%clk 0:00:49]}  Re7 {[%clk 0:00:02]} 35. Qxe7 {[%clk 0:00:49]} 1-0


[Site "https://www.chess.com"]

[Event "Titled Tuesday Blitz May 9 Early 2023"]
[White "Hua, Lefong"]
[Black "Fernandez Siles, Luis"]
[WhiteFideId "2602253"]
[BlackFideId "2209420"]
[WhiteElo "2723"]
[BlackElo "2195"]
[Result "1/2-1/2"]
[Round "01"]
[TimeControl "180+2"]
[Date "2023.05.09"]
[WhiteClock "0:00:21"]
[BlackClock "0:00:19"]

1. d4 {[%clk 0:03:00]}  Nf6 {[%clk 0:02:59]} 2. c4 {[%clk 0:03:01]}  g6 {[%clk 0:02:56]} 3. Nc3 {[%clk 0:03:01]}  Bg7 {[%clk 0:02:56]} 4. e4 {[%clk 0:03:01]}  d6 {[%clk 0:02:56]} 5. f4 {[%clk 0:03:02]}  O-O {[%clk 0:02:56]} 6. Nf3 {[%clk 0:03:02]}  c5 {[%clk 0:02:57]} 7. d5 {[%clk 0:03:03]}  e6 {[%clk 0:02:57]} 8. Be2 {[%clk 0:03:03]}  exd5 {[%clk 0:02:57]} 9. cxd5 {[%clk 0:03:04]}  Bg4 {[%clk 0:02:57]} 10. O-O {[%clk 0:03:04]}  Nbd7 {[%clk 0:02:57]} 11. Re1 {[%clk 0:03:05]}  Ne8 {[%clk 0:02:55]} 12. h3 {[%clk 0:03:05]}  Bxf3 {[%clk 0:02:54]} 13. Bxf3 {[%clk 0:03:06]}  Nc7 {[%clk 0:02:53]} 14. Be3 {[%clk 0:03:03]}  b5 {[%clk 0:02:53]} 15. a3 {[%clk 0:03:03]}  a5 {[%clk 0:02:52]} 16. Bf2 {[%clk 0:02:59]}  b4 {[%clk 0:02:51]} 17. axb4 {[%clk 0:02:55]}  axb4 {[%clk 0:02:49]} 18. Na4 {[%clk 0:02:55]}  Nb5 {[%clk 0:02:43]} 19. e5 {[%clk 0:02:49]}  dxe5 {[%clk 0:02:33]} 20. Nxc5 {[%clk 0:02:45]}  Rxa1 {[%clk 0:02:26]} 21. Qxa1 {[%clk 0:02:46]}  Nd4 {[%clk 0:02:17]} 22. Bxd4 {[%clk 0:02:19]}  exd4 {[%clk 0:02:17]} 23. Nd3 {[%clk 0:02:13]}  Re8 {[%clk 0:01:56]} 24. Nxb4 {[%clk 0:02:04]}  Nc5 {[%clk 0:01:44]} 25. Rxe8+ {[%clk 0:01:51]}  Qxe8 {[%clk 0:01:44]} 26. d6 {[%clk 0:01:50]}  Qe3+ {[%clk 0:01:30]} 27. Kh1 {[%clk 0:01:50]}  Qe6 {[%clk 0:01:14]} 28. Qa8+ {[%clk 0:01:28]}  Bf8 {[%clk 0:01:14]} 29. Bd5 {[%clk 0:01:17]}  Qxd6 {[%clk 0:00:51]} 30. g3 {[%clk 0:01:03]}  Ne6 {[%clk 0:00:38]} 31. Bxe6 {[%clk 0:00:37]}  Qxb4 {[%clk 0:00:37]} 32. Bd5 {[%clk 0:00:32]}  Qe1+ {[%clk 0:00:37]} 33. Kg2 {[%clk 0:00:32]}  Qe2+ {[%clk 0:00:34]} 34. Kh1 {[%clk 0:00:32]}  d3 {[%clk 0:00:34]} 35. Qb7 {[%clk 0:00:29]}  Be7 {[%clk 0:00:29]} 36. Bf3 {[%clk 0:00:24]}  Qe1+ {[%clk 0:00:26]} 37. Kg2 {[%clk 0:00:24]}  Qd2+ {[%clk 0:00:21]} 38. Kh1 {[%clk 0:00:20]}  Qe1+ {[%clk 0:00:20]} 39. Kg2 {[%clk 0:00:20]}  Qd2+ {[%clk 0:00:19]} 40. Kh1 {[%clk 0:00:21]}  Qe1+ {[%clk 0:00:19]} 1/2-1/2


[Site "https://www.chess.com"]

[Event "Titled Tuesday Blitz May 9 Early 2023"]
[White "Schmakel, Sam"]
[Black "Golubev, Mikhail"]
[WhiteFideId "2039311"]
[BlackFideId "14100983"]
[WhiteElo "2356"]
[BlackElo "2374"]
[Result "1-0"]
[Round "01"]
[TimeControl "180+2"]
[Date "2023.05.09"]
[WhiteClock "0:00:26"]
[BlackClock "0:00:00"]

1. Nf3 {[%clk 0:02:56]}  d6 {[%clk 0:02:59]} 2. c4 {[%clk 0:02:54]}  g6 {[%clk 0:02:54]} 3. g3 {[%clk 0:02:53]}  Bg7 {[%clk 0:02:55]} 4. Bg2 {[%clk 0:02:54]}  Nf6 {[%clk 0:02:55]} 5. Nc3 {[%clk 0:02:54]}  O-O {[%clk 0:02:55]} 6. d4 {[%clk 0:02:50]}  Nbd7 {[%clk 0:02:53]} 7. O-O {[%clk 0:02:51]}  e5 {[%clk 0:02:54]} 8. e4 {[%clk 0:02:51]}  Re8 {[%clk 0:02:53]} 9. d5 {[%clk 0:02:50]}  Nc5 {[%clk 0:02:48]} 10. Ne1 {[%clk 0:02:48]}  a5 {[%clk 0:02:46]} 11. h3 {[%clk 0:02:46]}  Nfd7 {[%clk 0:02:43]} 12. Be3 {[%clk 0:02:36]}  f5 {[%clk 0:02:42]} 13. Nd3 {[%clk 0:02:36]}  Nxd3 {[%clk 0:02:35]} 14. Qxd3 {[%clk 0:02:37]}  f4 {[%clk 0:02:29]} 15. gxf4 {[%clk 0:02:33]}  exf4 {[%clk 0:02:30]} 16. Bxf4 {[%clk 0:02:34]}  Rf8 {[%clk 0:02:20]} 17. Bg3 {[%clk 0:02:24]}  Ne5 {[%clk 0:02:14]} 18. Qe2 {[%clk 0:02:24]}  g5 {[%clk 0:02:14]} 19. Rad1 {[%clk 0:01:59]}  Bd7 {[%clk 0:02:13]} 20. Nb5 {[%clk 0:01:51]}  Rf7 {[%clk 0:01:57]} 21. Nd4 {[%clk 0:01:39]}  Qe7 {[%clk 0:01:48]} 22. f4 {[%clk 0:01:26]}  gxf4 {[%clk 0:01:46]} 23. Bxf4 {[%clk 0:01:27]}  Raf8 {[%clk 0:01:43]} 24. Be3 {[%clk 0:01:27]}  Ng6 {[%clk 0:01:13]} 25. Rxf7 {[%clk 0:01:20]}  Rxf7 {[%clk 0:01:11]} 26. Rf1 {[%clk 0:01:21]}  Rxf1+ {[%clk 0:00:52]} 27. Qxf1 {[%clk 0:01:17]}  Nh4 {[%clk 0:00:50]} 28. Qf2 {[%clk 0:01:07]}  Nxg2 {[%clk 0:00:41]} 29. Qxg2 {[%clk 0:01:08]}  Kh8 {[%clk 0:00:39]} 30. b3 {[%clk 0:01:08]}  Qh4 {[%clk 0:00:34]} 31. Nf3 {[%clk 0:00:45]}  Qxe4 {[%clk 0:00:31]} 32. Bd2 {[%clk 0:00:39]}  Qb1+ {[%clk 0:00:25]} 33. Kf2 {[%clk 0:00:34]}  Qxa2 {[%clk 0:00:24]} 34. Qg5 {[%clk 0:00:34]}  Kg8 {[%clk 0:00:01]} 35. Qd8+ {[%clk 0:00:34]}  Bf8 {[%clk 0:00:02]} 36. Qxd7 {[%clk 0:00:32]}  Qxb3 {[%clk 0:00:02]} 37. Ng5 {[%clk 0:00:26]}  Qd3 {[%clk 0:00:00]} 38. Qf7+ {[%clk 0:00:26]} 1-0


[Site "https://www.chess.com"]

[Event "Titled Tuesday Blitz May 9 Early 2023"]
[White "Tarasova, Viktoriya"]
[Black "Zhu, Jiner"]
[WhiteFideId "4175840"]
[BlackFideId "8608059"]
[WhiteElo "2182"]
[BlackElo "2384"]
[Result "0-1"]
[Round "01"]
[TimeControl "180+2"]
[Date "2023.05.09"]
[WhiteClock "0:00:03"]
[BlackClock "0:00:34"]

1. d4 {[%clk 0:03:00]}  Nf6 {[%clk 0:02:58]} 2. c4 {[%clk 0:03:00]}  g6 {[%clk 0:02:59]} 3. Nc3 {[%clk 0:02:59]}  Bg7 {[%clk 0:02:59]} 4. e4 {[%clk 0:02:59]}  d6 {[%clk 0:03:00]} 5. h3 {[%clk 0:02:59]}  c5 {[%clk 0:02:59]} 6. d5 {[%clk 0:02:58]}  O-O {[%clk 0:02:59]} 7. Bd3 {[%clk 0:02:56]}  e6 {[%clk 0:02:59]} 8. Nf3 {[%clk 0:02:54]}  exd5 {[%clk 0:02:59]} 9. exd5 {[%clk 0:02:55]}  Re8+ {[%clk 0:02:58]} 10. Be3 {[%clk 0:02:55]}  Nbd7 {[%clk 0:02:54]} 11. O-O {[%clk 0:02:55]}  a6 {[%clk 0:02:49]} 12. a4 {[%clk 0:02:55]}  Ne5 {[%clk 0:02:47]} 13. Nxe5 {[%clk 0:02:54]}  Rxe5 {[%clk 0:02:48]} 14. Bf4 {[%clk 0:02:54]}  Re8 {[%clk 0:02:47]} 15. Re1 {[%clk 0:02:54]}  Bd7 {[%clk 0:02:10]} 16. Qd2 {[%clk 0:02:39]}  Qc7 {[%clk 0:02:02]} 17. Rxe8+ {[%clk 0:02:36]}  Rxe8 {[%clk 0:02:02]} 18. Re1 {[%clk 0:02:36]}  Nh5 {[%clk 0:02:01]} 19. Bh2 {[%clk 0:02:35]}  Be5 {[%clk 0:01:52]} 20. Bxe5 {[%clk 0:02:23]}  dxe5 {[%clk 0:01:53]} 21. Ne4 {[%clk 0:01:41]}  f5 {[%clk 0:01:50]} 22. Ng5 {[%clk 0:01:15]}  Qd6 {[%clk 0:01:49]} 23. Be2 {[%clk 0:01:10]}  Nf6 {[%clk 0:01:46]} 24. b3 {[%clk 0:01:07]}  e4 {[%clk 0:01:38]} 25. h4 {[%clk 0:00:59]}  f4 {[%clk 0:01:31]} 26. Qc3 {[%clk 0:00:30]}  Qe5 {[%clk 0:01:23]} 27. Qxe5 {[%clk 0:00:28]}  Rxe5 {[%clk 0:01:24]} 28. Kh2 {[%clk 0:00:23]}  h6 {[%clk 0:01:15]} 29. Nh3 {[%clk 0:00:23]}  g5 {[%clk 0:01:06]} 30. hxg5 {[%clk 0:00:21]}  hxg5 {[%clk 0:01:07]} 31. g3 {[%clk 0:00:13]}  f3 {[%clk 0:01:01]} 32. Bf1 {[%clk 0:00:13]}  Kg7 {[%clk 0:00:40]} 33. Kg1 {[%clk 0:00:13]}  Kg6 {[%clk 0:00:40]} 34. Kh2 {[%clk 0:00:10]}  Re8 {[%clk 0:00:40]} 35. a5 {[%clk 0:00:10]}  Rh8 {[%clk 0:00:38]} 36. Rb1 {[%clk 0:00:06]}  g4 {[%clk 0:00:37]} 37. b4 {[%clk 0:00:06]}  gxh3 {[%clk 0:00:34]} 38. bxc5 {[%clk 0:00:06]}  Ng4+ {[%clk 0:00:34]} 39. Kg1 {[%clk 0:00:03]}  h2+ {[%clk 0:00:34]} 0-1


[Site "https://www.chess.com"]

[Event "Titled Tuesday Blitz May 9 Early 2023"]
[White "Lima, Kleyton Alcantara"]
[Black "Leiva, Gianmarco"]
[WhiteFideId "22718397"]
[BlackFideId "3804399"]
[WhiteElo "2009"]
[BlackElo "2365"]
[Result "0-1"]
[Round "01"]
[TimeControl "180+2"]
[Date "2023.05.09"]
[WhiteClock "0:00:00"]
[BlackClock "0:00:02"]

1. e4 {[%clk 0:02:48]}  c5 {[%clk 0:02:59]} 2. Nf3 {[%clk 0:02:42]}  d6 {[%clk 0:02:57]} 3. d4 {[%clk 0:02:30]}  cxd4 {[%clk 0:02:51]} 4. Nxd4 {[%clk 0:02:31]}  Nf6 {[%clk 0:02:50]} 5. Nc3 {[%clk 0:02:31]}  g6 {[%clk 0:02:48]} 6. Be3 {[%clk 0:02:28]}  Bg7 {[%clk 0:02:45]} 7. f3 {[%clk 0:02:28]}  O-O {[%clk 0:02:43]} 8. Qd2 {[%clk 0:02:28]}  Nc6 {[%clk 0:02:43]} 9. O-O-O {[%clk 0:02:28]}  Rb8 {[%clk 0:02:38]} 10. h4 {[%clk 0:02:16]}  Bd7 {[%clk 0:01:52]} 11. g4 {[%clk 0:01:49]}  Qa5 {[%clk 0:01:20]} 12. Kb1 {[%clk 0:01:46]}  Rfc8 {[%clk 0:01:15]} 13. h5 {[%clk 0:01:42]}  Ne5 {[%clk 0:01:13]} 14. Be2 {[%clk 0:01:01]}  b5 {[%clk 0:00:38]} 15. Nd5 {[%clk 0:00:29]}  Qxd2 {[%clk 0:00:30]} 16. Nxf6+ {[%clk 0:00:27]}  Bxf6 {[%clk 0:00:29]} 17. Rxd2 {[%clk 0:00:28]}  a5 {[%clk 0:00:15]} 18. g5 {[%clk 0:00:20]}  Bg7 {[%clk 0:00:13]} 19. f4 {[%clk 0:00:20]}  Nc4 {[%clk 0:00:11]} 20. Bxc4 {[%clk 0:00:18]}  Rxc4 {[%clk 0:00:12]} 21. h6 {[%clk 0:00:17]}  Bh8 {[%clk 0:00:10]} 22. Nb3 {[%clk 0:00:15]}  Rxe4 {[%clk 0:00:07]} 23. Re1 {[%clk 0:00:11]}  a4 {[%clk 0:00:04]} 24. Nc1 {[%clk 0:00:09]}  b4 {[%clk 0:00:03]} 25. Rde2 {[%clk 0:00:07]}  Bb5 {[%clk 0:00:03]} 26. Nd3 {[%clk 0:00:05]}  b3 {[%clk 0:00:03]} 27. axb3 {[%clk 0:00:05]}  axb3 {[%clk 0:00:03]} 28. Rd2 {[%clk 0:00:02]}  Ra4 {[%clk 0:00:02]} 29. cxb3 {[%clk 0:00:01]}  Raa8 {[%clk 0:00:02]} 30. Nf2 {[%clk 0:00:01]}  Bd7 {[%clk 0:00:02]} 31. Rc1 {[%clk 0:00:00]}  Bf5+ {[%clk 0:00:02]} 0-1


[Site "https://www.chess.com"]

[Event "Titled Tuesday Blitz May 9 Early 2023"]
[White "Averjanov, Alexey"]
[Black "Feinig, Mario"]
[WhiteFideId "14109867"]
[BlackFideId "1618113"]
[WhiteElo "2704"]
[BlackElo "2163"]
[Result "1-0"]
[Round "01"]
[TimeControl "180+2"]
[Date "2023.05.09"]
[WhiteClock "0:00:47"]
[BlackClock "0:00:00"]

1. d4 {[%clk 0:03:00]}  d5 {[%clk 0:02:51]} 2. c4 {[%clk 0:02:59]}  e6 {[%clk 0:02:42]} 3. Nf3 {[%clk 0:02:58]}  Bb4+ {[%clk 0:02:29]} 4. Nbd2 {[%clk 0:02:58]}  Nc6 {[%clk 0:02:27]} 5. e3 {[%clk 0:02:57]}  Nf6 {[%clk 0:02:20]} 6. Bd3 {[%clk 0:02:58]}  Qe7 {[%clk 0:02:15]} 7. O-O {[%clk 0:02:57]}  O-O {[%clk 0:02:12]} 8. a3 {[%clk 0:02:58]}  Bxd2 {[%clk 0:02:10]} 9. Bxd2 {[%clk 0:02:58]}  e5 {[%clk 0:02:09]} 10. dxe5 {[%clk 0:02:58]}  Nxe5 {[%clk 0:02:09]} 11. Nxe5 {[%clk 0:02:59]}  Qxe5 {[%clk 0:02:09]} 12. Bc3 {[%clk 0:02:59]}  Qe6 {[%clk 0:02:03]} 13. Bxf6 {[%clk 0:02:59]}  Qxf6 {[%clk 0:02:02]} 14. cxd5 {[%clk 0:02:57]}  Qxb2 {[%clk 0:02:01]} 15. Qh5 {[%clk 0:02:50]}  g6 {[%clk 0:02:00]} 16. Qg5 {[%clk 0:02:47]}  Qg7 {[%clk 0:01:46]} 17. Rac1 {[%clk 0:02:45]}  f6 {[%clk 0:01:46]} 18. Qf4 {[%clk 0:02:43]}  c6 {[%clk 0:01:34]} 19. dxc6 {[%clk 0:02:42]}  bxc6 {[%clk 0:01:35]} 20. Rxc6 {[%clk 0:02:39]}  Rd8 {[%clk 0:01:34]} 21. Rc7 {[%clk 0:02:33]}  Qf8 {[%clk 0:01:26]} 22. Bc4+ {[%clk 0:02:17]}  Kh8 {[%clk 0:01:26]} 23. Rf7 {[%clk 0:02:15]}  Qd6 {[%clk 0:01:26]} 24. Qh4 {[%clk 0:02:11]}  h5 {[%clk 0:01:25]} 25. Rxf6 {[%clk 0:02:10]}  Qe7 {[%clk 0:01:20]} 26. Qg5 {[%clk 0:02:09]}  Bg4 {[%clk 0:01:07]} 27. Qxg6 {[%clk 0:02:02]}  Qg7 {[%clk 0:01:06]} 28. Qxg7+ {[%clk 0:01:48]}  Kxg7 {[%clk 0:01:07]} 29. Rf7+ {[%clk 0:01:48]}  Kg6 {[%clk 0:01:08]} 30. f3 {[%clk 0:01:45]}  Bd7 {[%clk 0:00:57]} 31. Re7 {[%clk 0:01:27]}  Rac8 {[%clk 0:00:46]} 32. Be6 {[%clk 0:01:22]}  Bxe6 {[%clk 0:00:39]} 33. Rxe6+ {[%clk 0:01:23]}  Kf5 {[%clk 0:00:37]} 34. Re7 {[%clk 0:01:14]}  Rd2 {[%clk 0:00:34]} 35. Rxa7 {[%clk 0:01:07]}  Rcc2 {[%clk 0:00:12]} 36. Rg7 {[%clk 0:01:06]}  Kf6 {[%clk 0:00:13]} 37. Rg8 {[%clk 0:01:04]}  Kf7 {[%clk 0:00:12]} 38. Rg5 {[%clk 0:01:04]}  Kf6 {[%clk 0:00:13]} 39. h4 {[%clk 0:01:04]}  Ra2 {[%clk 0:00:10]} 40. Rb1 {[%clk 0:01:02]}  Kf7 {[%clk 0:00:08]} 41. Rb7+ {[%clk 0:01:00]}  Kf8 {[%clk 0:00:08]} 42. Kh2 {[%clk 0:00:54]}  Rf2 {[%clk 0:00:06]} 43. Kh3 {[%clk 0:00:53]}  Rfe2 {[%clk 0:00:03]} 44. Rxh5 {[%clk 0:00:49]}  Kg8 {[%clk 0:00:02]} 45. Rg5+ {[%clk 0:00:49]}  Kh8 {[%clk 0:00:00]} 46. Ra5 {[%clk 0:00:47]} 1-0


[Site "https://www.chess.com"]